bitfinex/quotes_BTCUSD_20251201
["timestamp","ask_amount","ask_price","bid_price","bid_amount"]
[1764614050424,0.00038865,85349.0,85348.0,0.003]
[1764614050623,0.00038865,85349.0,85332.0,0.24609585]
[1764614050787,0.00038865,85349.0,85335.0,0.23437004]
[1764614050987,0.02563693,85349.0,85335.0,0.23437004]
[1764614051236,0.02563693,85349.0,85337.0,0.23436425]
[1764614051435,0.02563693,85349.0,85338.0,0.02812387]
[1764614051436,0.00038865,85349.0,85338.0,0.02812387]
[1764614051638,0.00138865,85349.0,85338.0,0.02812387]
[1764614052183,0.00138865,85349.0,85328.0,0.23438765]
[1764614052184,0.01310524,85349.0,85331.0,0.01171907]
[1764614052427,0.02663693,85349.0,85334.0,0.01171865]
[1764614052630,0.02563693,85349.0,85337.0,0.01171824]
[1764614052857,0.1104846,85352.0,85337.0,0.01171824]
[1764614053060,0.001,85349.0,85338.0,0.0117181]
[1764614053266,0.00011655,85352.0,85337.0,0.24608238]
[1764614053475,0.01171755,85342.0,85325.0,0.01171989]
[1764614053703,0.2460576,85346.0,85330.0,0.0117192]
[1764614053903,0.01171728,85344.0,85330.0,0.0117192]
[1764614054126,0.01171714,85345.0,85329.0,0.01171934]
[1764614054329,0.24606013,85345.0,85331.0,0.01171907]
[1764614054466,0.01171714,85345.0,85331.0,0.24609913]
[1764614054644,0.01171701,85346.0,85332.0,0.01171893]
[1764614054845,0.01171728,85344.0,85329.0,0.01171934]
[1764614055086,0.01171728,85344.0,85330.0,0.0117192]
[1764614055284,0.01171687,85347.0,85331.0,0.01171907]
[1764614055485,0.01171701,85346.0,85331.0,0.01171907]
[1764614055799,0.01171714,85345.0,85331.0,0.01171907]
[1764614056036,0.01171714,85345.0,85330.0,0.24610296]
[1764614056037,0.01171769,85341.0,85326.0,0.24611342]
[1764614058348,0.323,85348.0,85336.0,0.01171838]
[1764614058572,0.323,85348.0,85335.0,0.01171852]
[1764614058882,0.33471646,85350.0,85336.0,0.01171838]
[1764614059039,0.323,85350.0,85337.0,0.01171824]
[1764614059236,0.323,85350.0,85338.0,0.0117181]
[1764614059445,0.323,85350.0,85336.0,0.01171838]
[1764614059643,0.01171659,85349.0,85335.0,0.2460887]
[1764614059847,0.01171659,85349.0,85336.0,0.01171838]
[1764614060047,0.01171659,85349.0,85335.0,0.01171852]
[1764614060464,0.57104671,85350.0,85336.0,0.01171838]
[1764614060685,0.56904671,85350.0,85336.0,0.01171838]
[1764614060890,0.01171659,85349.0,85335.0,0.2460885]
[1764614061084,0.33471646,85350.0,85335.0,0.2460885]
[1764614061293,0.01171714,85345.0,85330.0,0.23438364]
[1764614061496,0.01171797,85339.0,85320.0,0.1474]
[1764614061702,0.0117181,85338.0,85322.0,0.23440566]
[1764614061909,0.11740741,85342.0,85331.0,0.01171907]
[1764614062109,0.001,85349.0,85348.0,0.23366674]
[1764614062349,0.001,85349.0,85348.0,0.46274094]
[1764614062553,0.001,85349.0,85348.0,0.47415161]
[1764614062860,0.03147403,85381.0,85351.0,0.29684947]
[1764614062992,0.03147403,85381.0,85351.0,0.30826014]
[1764614063189,0.323,85382.0,85351.0,0.33857134]
[1764614063392,1.334509,85380.0,85351.0,0.32716067]
[1764614064310,0.01171248,85379.0,85351.0,0.33116067]
[1764614064494,0.01171248,85379.0,85351.0,0.32716067]
[1764614064860,0.01171303,85375.0,85351.0,0.32716067]
[1764614064996,0.01171289,85376.0,85351.0,0.34520426]
[1764614065196,0.02524273,85376.0,85351.0,0.34520426]
[1764614065807,0.02524273,85376.0,85351.0,0.35761493]
[1764614066086,0.02524273,85376.0,85351.0,0.26908127]
[1764614066324,0.23427433,85370.0,85351.0,0.23432648]
[1764614066524,0.11740741,85369.0,85351.0,0.24032648]
[1764614066725,0.14265014,85369.0,85351.0,0.24032648]
[1764614066937,0.14265014,85369.0,85351.0,0.23932648]
[1764614066938,0.01171399,85368.0,85351.0,0.23932648]
[1764614067143,0.11740741,85369.0,85351.0,0.23432648]
[1764614067144,0.14264041,85369.0,85351.0,0.23432648]
[1764614067447,0.14264041,85369.0,85351.0,0.23532648]
[1764614067654,0.11740741,85369.0,85351.0,0.23532648]
[1764614067813,0.23428883,85365.0,85351.0,0.001]
[1764614068017,0.0117144,85365.0,85351.0,0.005]
[1764614068453,0.025233,85367.0,85351.0,0.23932648]
[1764614068655,0.00025943,85358.0,85351.0,0.23932648]
[1764614070289,0.00025943,85358.0,85351.0,0.005]
[1764614070413,0.00025943,85358.0,85351.0,0.23932648]
[1764614075176,0.00025943,85358.0,85351.0,0.25073715]
[1764614075788,0.00025943,85358.0,85351.0,0.23932648]
[1764614076190,0.00025943,85358.0,85351.0,0.23832648]
[1764614076394,0.00025943,85358.0,85351.0,0.23532648]
[1764614076765,0.00025943,85358.0,85351.0,0.23932648]
[1764614078371,0.00025943,85358.0,85351.0,0.005]
[1764614078830,0.00025943,85358.0,85351.0,0.23932648]
[1764614079426,0.00025943,85358.0,85351.0,0.23532648]
[1764614079632,0.00025943,85358.0,85351.0,0.23432648]
[1764614079955,0.00025943,85358.0,85351.0,0.23832648]
[1764614080148,0.00025943,85358.0,85351.0,0.004]
[1764614081031,0.00025943,85358.0,85351.0,0.005]
[1764614081451,0.00025943,85358.0,85351.0,0.23932648]
[1764614081788,0.00025943,85358.0,85351.0,0.005]
[1764614082505,0.00025943,85358.0,85351.0,0.23932648]
[1764614087725,0.01171591,85354.0,85351.0,0.005]
[1764614087929,0.02592857,85352.0,85351.0,0.005]
[1764614088082,0.00011655,85352.0,85351.0,0.005]
[1764614088519,0.00011655,85352.0,85341.0,0.01171769]
[1764614088692,0.00011655,85352.0,85343.0,0.2460637]
[1764614088892,0.00011655,85352.0,85351.0,0.005]
[1764614089094,0.00011655,85352.0,85351.0,0.001]
[1764614089494,0.07964655,85352.0,85351.0,0.002]
[1764614089695,0.58269703,85352.0,85351.0,0.002]
[1764614090405,0.58269703,85352.0,85351.0,0.001]
[1764614090607,0.01171769,85341.0,85326.0,0.01171975]
[1764614090815,0.0117181,85338.0,85324.0,0.01172003]
[1764614091020,0.01171893,85332.0,85315.0,0.01172126]
[1764614091225,0.23436492,85337.0,85316.0,0.01172113]
[1764614091477,0.01171865,85334.0,85317.0,0.01172099]
[1764614091682,0.23437073,85335.0,85321.0,0.01172044]
[1764614091683,0.01171852,85335.0,85321.0,0.01172044]
[1764614091874,0.24608605,85336.0,85321.0,0.01172044]
[1764614092280,0.08924015,85335.0,85321.0,0.01172044]
[1764614092400,0.01171865,85334.0,85319.0,0.24613458]
[1764614092626,0.01171879,85333.0,85319.0,0.24613458]
[1764614092849,0.01171879,85333.0,85314.0,0.0117214]
[1764614092850,0.2461001,85333.0,85314.0,0.0117214]
[1764614093039,0.23437907,85332.0,85321.0,0.002]
[1764614093239,0.246098,85332.0,85317.0,0.01172099]
[1764614093468,0.01171893,85332.0,85318.0,0.01172085]
[1764614093676,0.01171893,85332.0,85319.0,0.002]
[1764614094098,0.2461001,85333.0,85319.0,0.002]
[1764614094313,0.01171934,85329.0,85319.0,0.002]
[1764614094984,0.01171893,85332.0,85318.0,0.01172085]
[1764614095129,0.01171893,85332.0,85321.0,0.003]
[1764614095333,0.01171879,85333.0,85319.0,0.01172071]
[1764614095700,0.01171879,85333.0,85319.0,0.01472071]
[1764614095902,0.01171907,85331.0,85317.0,0.24613926]
[1764614096112,0.01171893,85332.0,85318.0,0.01172085]
[1764614096330,0.01171893,85332.0,85321.0,0.003]
[1764614096534,0.01171907,85331.0,85317.0,0.01172099]
[1764614096735,0.2461017,85331.0,85318.0,0.001]
[1764614096936,0.01171893,85332.0,85319.0,0.002]
[1764614097341,0.2460971,85333.0,85319.0,0.01372071]
[1764614097539,0.2460971,85333.0,85319.0,0.002]
[1764614097758,0.2461016,85331.0,85319.0,0.002]
[1764614097961,0.0117192,85330.0,85316.0,0.01172113]
[1764614098160,0.01171865,85334.0,85317.0,0.06212304]
[1764614098448,0.01171879,85333.0,85321.0,0.003]
[1764614098661,0.01171907,85331.0,85319.0,0.001]
[1764614098910,0.01171893,85332.0,85319.0,0.004]
[1764614099263,0.01171893,85332.0,85319.0,0.001]
[1764614099617,0.01171907,85331.0,85321.0,0.002]
[1764614099921,0.01171907,85331.0,85317.0,0.01172099]
[1764614100099,0.01171907,85331.0,85319.0,0.003]
[1764614100281,0.24609213,85334.0,85319.0,0.02908622]
[1764614100480,0.01171852,85335.0,85320.0,0.01172058]
[1764614100661,0.33471797,85339.0,85319.0,0.02908622]
[1764614100662,0.11740741,85327.0,85319.0,0.003]
[1764614100866,0.24611911,85325.0,85319.0,0.003]
[1764614101069,0.0117203,85322.0,85319.0,0.003]
[1764614101268,0.0117203,85322.0,85317.0,0.001]
[1764614101269,0.23440887,85322.0,85317.0,0.001]
[1764614101537,0.01172044,85321.0,85306.0,0.24617253]
[1764614101727,0.323,85326.0,85310.0,0.24616015]
[1764614101931,0.23439947,85325.0,85308.0,0.24616615]
[1764614102139,0.23440096,85324.0,85307.0,0.01172236]
[1764614102313,0.01172044,85321.0,85307.0,0.01172236]
[1764614102628,0.01172085,85318.0,85303.0,0.24618066]
[1764614102844,0.01172085,85318.0,85304.0,0.01172277]
[1764614103046,0.24613641,85319.0,85302.0,0.01172305]
[1764614103377,0.33472085,85318.0,85303.0,0.24618024]
[1764614103592,0.323,85318.0,85305.0,0.01172264]
[1764614103742,0.323,85318.0,85306.0,0.0117225]
[1764614103911,0.323,85318.0,85305.0,0.01172264]
[1764614104109,0.2461448,85316.0,85298.0,0.24619489]
[1764614104315,0.2461448,85316.0,85299.0,0.24619213]
[1764614104316,0.01172113,85316.0,85299.0,0.24619213]
[1764614104515,0.01172154,85313.0,85298.0,0.0117236]
[1764614104964,0.55743074,85314.0,85296.0,0.24619929]
[1764614104965,0.56915214,85314.0,85296.0,0.24619929]
[1764614105186,0.01172168,85312.0,85297.0,0.01172374]
[1764614105389,0.56914953,85314.0,85298.0,0.24619539]
[1764614105730,0.56914953,85314.0,85299.0,0.01172346]
[1764614105950,0.3347214,85314.0,85299.0,0.24619199]
[1764614106345,0.33472126,85315.0,85301.0,0.01172319]
[1764614106548,0.0117214,85314.0,85299.0,0.24619199]
[1764614106777,0.12912881,85314.0,85299.0,0.24619199]
[1764614106976,0.323,85315.0,85307.0,0.23444513]
[1764614107153,0.323,85315.0,85306.0,0.24617043]
[1764614107508,0.323,85322.0,85308.0,0.01172223]
[1764614107713,0.323,85322.0,85309.0,0.0515789]
[1764614108132,0.3347203,85322.0,85309.0,0.0515789]
[1764614108302,0.03691679,85321.0,85306.0,0.24617246]
[1764614108499,0.02519635,85321.0,85307.0,0.01172236]
[1764614108696,0.323,85320.0,85303.0,0.24618019]
[1764614108948,0.323,85320.0,85306.0,0.0117225]
[1764614109332,0.02519658,85319.0,85306.0,0.0117225]
[1764614110569,0.02519658,85319.0,85308.0,0.01172223]
[1764614110775,0.02519658,85322.0,85308.0,0.24616594]
[1764614111038,0.001,85319.0,85307.0,0.01172236]
[1764614111519,0.002,85319.0,85307.0,0.01172236]
[1764614111649,0.001,85319.0,85307.0,0.01172236]
[1764614111852,0.001,85319.0,85308.0,0.01172223]
[1764614112069,0.001,85319.0,85307.0,0.24616933]
[1764614112269,0.001,85319.0,85308.0,0.01172223]
[1764614112865,0.001,85319.0,85307.0,0.01172236]
[1764614113086,0.002,85319.0,85308.0,0.01172223]
[1764614113506,0.001,85319.0,85308.0,0.01172223]
[1764614113835,0.002,85319.0,85308.0,0.01172223]
[1764614113969,0.001,85319.0,85309.0,0.24616294]
[1764614114171,0.02519658,85323.0,85310.0,0.05157775]
[1764614114391,0.001,85319.0,85310.0,0.05157775]
[1764614114650,0.70865398,85320.0,85310.0,0.05157775]
[1764614114825,0.70865398,85320.0,85310.0,0.29773874]
[1764614115030,0.70865398,85320.0,85310.0,0.24616035]
[1764614115390,0.70865398,85320.0,85309.0,0.2461618]
[1764614115595,0.70865398,85320.0,85310.0,0.01272195]
[1764614115831,0.70865398,85320.0,85310.0,0.24616087]
[1764614116126,0.70865398,85320.0,85311.0,0.01172181]
[1764614116328,0.02524932,85319.0,85311.0,0.24615792]
[1764614116995,0.02524932,85319.0,85312.0,0.01172168]
[1764614117395,0.02524932,85319.0,85311.0,0.24615792]
[1764614117716,0.02524932,85319.0,85312.0,0.01172168]
[1764614117920,0.02524932,85319.0,85313.0,0.01172154]
[1764614118250,0.02524932,85322.0,85316.0,0.01172113]
[1764614118447,0.02524932,85322.0,85315.0,0.01172126]
[1764614118686,0.03154479,85324.0,85315.0,0.01172126]
[1764614119068,0.03154479,85324.0,85314.0,0.24614854]
[1764614119422,0.04363589,85325.0,85311.0,0.001]
[1764614119423,0.03154479,85322.0,85311.0,0.001]
[1764614119588,0.01172071,85319.0,85302.0,0.01172305]
[1764614119754,0.70865398,85314.0,85305.0,0.01172264]
[1764614119956,0.02524932,85313.0,85305.0,0.01172264]
[1764614120191,0.02524932,85313.0,85308.0,0.01172223]
[1764614120370,0.02524932,85313.0,85307.0,0.24616925]
[1764614120572,0.70865398,85317.0,85307.0,0.24616925]
[1764614120772,0.02524932,85316.0,85307.0,0.24616925]
[1764614120984,0.02524932,85316.0,85309.0,0.01172209]
[1764614121187,0.02524932,85316.0,85308.0,0.24616638]
[1764614121389,0.02524932,85316.0,85309.0,0.01172209]
[1764614121785,0.02524932,85319.0,85308.0,0.2461662]
[1764614122013,0.02524932,85319.0,85309.0,0.01172209]
[1764614122214,0.05679411,85319.0,85311.0,0.01172181]
[1764614122529,0.05679411,85319.0,85314.0,0.23442744]
[1764614122837,0.03154479,85319.0,85312.0,0.246155]
[1764614123038,0.03154479,85319.0,85311.0,0.24615805]
[1764614123238,0.03154479,85319.0,85309.0,0.01172209]
[1764614123372,0.03154479,85319.0,85310.0,0.01172195]
[1764614123572,0.03154479,85319.0,85310.0,0.24616103]
[1764614123823,0.03154479,85319.0,85306.0,0.2461725]
[1764614124025,0.70865398,85316.0,85305.0,0.01172264]
[1764614124222,0.02524932,85315.0,85307.0,0.24616939]
[1764614124532,0.03154479,85318.0,85307.0,0.24616939]
[1764614125279,0.03154479,85318.0,85308.0,0.24616601]
[1764614125886,0.03154479,85319.0,85310.0,0.01172195]
[1764614126093,0.04900924,85318.0,85307.0,0.24616841]
[1764614126405,0.08055403,85318.0,85309.0,0.01172209]
[1764614126621,0.08055403,85318.0,85308.0,0.24616618]
[1764614126820,0.08055403,85318.0,85309.0,0.01172209]
[1764614127022,0.03154479,85318.0,85311.0,0.24615698]
[1764614127223,0.03154479,85318.0,85310.0,0.24616032]
[1764614127426,0.03154479,85317.0,85311.0,0.01172181]
[1764614127594,0.03154479,85318.0,85312.0,0.01172168]
[1764614127796,0.03154479,85318.0,85312.0,0.24615517]
[1764614128017,0.03154479,85318.0,85313.0,0.24615229]
[1764614128193,0.03154479,85319.0,85315.0,0.01172126]
[1764614128397,0.03154479,85319.0,85308.0,0.70865398]
[1764614128398,0.03154479,85322.0,85310.0,0.01172195]
[1764614128608,0.03154479,85322.0,85314.0,0.0117214]
[1764614128609,0.70865398,85320.0,85314.0,0.0117214]
[1764614128844,0.02524932,85319.0,85315.0,0.01172126]
[1764614129043,0.03154479,85322.0,85316.0,0.01172113]
[1764614129247,0.05679411,85321.0,85316.0,0.01172113]
[1764614129447,0.03154479,85321.0,85310.0,0.24615907]
[1764614129647,0.70865398,85320.0,85317.0,0.01172099]
[1764614129854,0.02524932,85319.0,85317.0,0.01172099]
[1764614130050,0.03154479,85321.0,85316.0,0.24614368]
[1764614130247,0.03154479,85321.0,85318.0,0.01172085]
[1764614130452,0.03154479,85321.0,85316.0,0.01172113]
[1764614130629,0.03154479,85321.0,85300.0,0.01172332]
[1764614130829,0.03154479,85318.0,85309.0,0.01172209]
[1764614131032,0.03154479,85317.0,85309.0,0.01172209]
[1764614131519,0.05679411,85317.0,85308.0,0.24616507]
[1764614131755,0.01172223,85308.0,85289.0,0.01172484]
[1764614131971,0.03154479,85304.0,85284.0,0.01172552]
[1764614132171,0.67818811,85304.0,85272.0,0.01172717]
[1764614132483,0.01172621,85279.0,85262.0,0.01172855]
[1764614132683,0.70865398,85272.0,85260.0,0.0002]
[1764614132934,0.02524932,85271.0,85260.0,0.0002]
[1764614133096,0.01172772,85268.0,85260.0,0.0002]
[1764614133295,0.01172814,85265.0,85260.0,0.0002]
[1764614133503,0.11740741,85266.0,85260.0,0.0002]
[1764614133848,0.1174574,85266.0,85260.0,0.0002]
[1764614134589,0.1174574,85266.0,85260.0,0.0012]
[1764614134794,0.1174574,85266.0,85260.0,0.0002]
[1764614135282,0.1174574,85266.0,85260.0,0.0012]
[1764614135528,4.999e-05,85266.0,85260.0,0.0002]
[1764614135955,0.11740741,85265.0,85260.0,0.0002]
[1764614136690,4.999e-05,85266.0,85260.0,0.24650408]
[1764614137119,4.999e-05,85266.0,85263.0,0.23456765]
[1764614137295,4.999e-05,85266.0,85263.0,0.01172841]
[1764614138012,4.999e-05,85266.0,85262.0,0.24629921]
[1764614138218,4.999e-05,85266.0,85263.0,0.01172841]
[1764614138426,4.999e-05,85266.0,85265.0,0.00123412]
[1764614140730,0.02189758,85266.0,85265.0,0.00123412]
[1764614141182,0.02289758,85266.0,85265.0,0.00123412]
[1764614141385,4.999e-05,85266.0,85265.0,0.00123412]
[1764614141639,0.1174574,85266.0,85265.0,0.00123412]
[1764614143200,0.4404574,85266.0,85265.0,0.00123412]
[1764614143590,0.67501748,85266.0,85265.0,0.00123412]
[1764614143790,0.67601748,85266.0,85265.0,0.00123412]
[1764614144016,0.67501748,85266.0,85265.0,0.00123412]
[1764614144389,0.79124344,85266.0,85265.0,0.00123412]
[1764614144588,2.81640029,85266.0,85265.0,0.00123412]
[1764614145400,2.83480101,85266.0,85265.0,0.00123412]
[1764614145602,2.81640029,85266.0,85265.0,0.00123412]
[1764614145937,2.81540029,85266.0,85265.0,0.00123412]
[1764614146141,2.81640029,85266.0,85265.0,0.00123412]
[1764614146546,2.81540029,85266.0,85265.0,0.00123412]
[1764614146900,2.81940029,85266.0,85265.0,0.00123412]
[1764614148700,2.83780198,85266.0,85265.0,0.00123412]
[1764614149268,0.60487127,85240.0,85230.0,0.01173295]
[1764614149890,0.60487127,85240.0,85232.0,0.23465114]
[1764614150074,0.60487127,85240.0,85234.0,0.0117324]
[1764614150275,0.60487127,85240.0,85232.0,0.23465114]
[1764614150462,0.60487127,85240.0,85232.0,0.00038865]
[1764614150961,0.60487127,85240.0,85232.0,0.00138865]
[1764614151418,0.60487127,85240.0,85232.0,0.01312133]
[1764614151768,0.60487127,85240.0,85232.0,0.00138865]
[1764614152731,0.60487127,85240.0,85234.0,0.0117324]
[1764614152909,0.60487127,85240.0,85232.0,0.24777243]
[1764614153687,0.60487127,85240.0,85232.0,0.01312133]
[1764614153882,0.61660285,85240.0,85232.0,0.00138865]
[1764614154087,0.60487127,85242.0,85232.0,0.00138865]
[1764614155061,0.60487127,85242.0,85239.0,0.00084484]
[1764614155230,0.12913844,85244.0,85232.0,0.00138865]
[1764614155424,0.36375952,85244.0,85232.0,0.00038865]
[1764614155872,0.60487127,85242.0,85232.0,0.23604014]
[1764614156030,0.60487127,85242.0,85232.0,0.00038865]
[1764614156484,0.71007929,85242.0,85232.0,0.00138865]
[1764614156646,1.42015858,85242.0,85232.0,0.00038865]
[1764614156845,1.42015858,85242.0,85232.0,0.00138865]
[1764614158633,0.65686292,85242.0,85232.0,0.00138865]
[1764614160708,1.68994221,85242.0,85241.0,0.00077983]
[1764614160952,0.58283916,85242.0,85241.0,0.00077983]
[1764614161610,0.34821304,85242.0,85241.0,0.00077983]
[1764614162092,0.02521304,85242.0,85241.0,0.00177983]
[1764614162301,0.23462612,85242.0,85241.0,0.00077983]
[1764614162510,0.25983916,85242.0,85241.0,0.00077983]
[1764614164057,0.30206075,85242.0,85241.0,0.00077983]
[1764614166090,0.02521304,85242.0,85241.0,0.00077983]
[1764614166307,0.01173254,85233.0,85218.0,0.21052919]
[1764614166548,0.02521304,85233.0,85223.0,0.23467605]
[1764614166758,0.02521304,85233.0,85219.0,0.24642197]
[1764614166957,0.02521304,85233.0,85218.0,0.00038904]
[1764614166958,0.11740741,85231.0,85218.0,0.00038904]
[1764614167213,0.55768944,85219.0,85218.0,0.00038904]
[1764614167412,2.58290248,85219.0,85218.0,0.00038904]
[1764614167617,2.69812844,85219.0,85218.0,0.00038904]
[1764614167822,2.58290248,85219.0,85218.0,0.00113669]
[1764614168806,2.58490248,85219.0,85218.0,0.00113669]
[1764614169012,2.64642547,85219.0,85218.0,0.00113669]
[1764614169375,2.64642547,85219.0,85184.0,0.0001]
[1764614169376,2.23471148,85211.0,85184.0,0.0001]
[1764614169551,2.23471148,85211.0,85210.0,0.00031623]
[1764614169552,2.58292452,85211.0,85210.0,0.00031623]
[1764614169801,2.58292452,85211.0,85210.0,0.00011623]
[1764614170008,2.58292452,85211.0,85210.0,0.00037634]
[1764614170237,2.76285492,85211.0,85210.0,0.00037634]
[1764614170381,2.87808088,85211.0,85210.0,0.00037634]
[1764614171195,2.70133193,85211.0,85210.0,0.00037634]
[1764614171754,2.70333193,85211.0,85210.0,0.00037634]
[1764614172260,2.70133193,85211.0,85210.0,0.00037634]
[1764614172682,2.70333193,85211.0,85210.0,0.00037634]
[1764614173103,2.70803919,85211.0,85210.0,0.00037634]
[1764614173308,2.82326515,85211.0,85210.0,0.00037634]
[1764614173556,0.323,85198.0,85179.0,0.2319543]
[1764614173781,0.323,85188.0,85181.0,0.0117397]
[1764614173989,0.01121413,85187.0,85179.0,0.00011666]
[1764614174196,0.323,85188.0,85179.0,0.00011666]
[1764614174401,0.30877947,85188.0,85179.0,0.00011666]
[1764614174601,0.30877947,85188.0,85179.0,0.01185664]
[1764614174808,0.30877947,85188.0,85179.0,0.00011666]
[1764614175017,0.55529375,85188.0,85179.0,0.00011666]
[1764614175247,0.32051821,85188.0,85179.0,0.00011666]
[1764614175457,0.55529367,85188.0,85179.0,0.00211666]
[1764614175660,0.55529367,85188.0,85179.0,0.00011666]
[1764614175860,0.24652057,85186.0,85179.0,0.00011666]
[1764614176014,0.23479673,85181.0,85179.0,0.00211666]
[1764614176219,0.323,85180.0,85179.0,0.00211666]
[1764614176421,2.323,85180.0,85179.0,0.00211666]
[1764614176628,2.48015396,85180.0,85179.0,0.00211666]
[1764614176849,2.40024619,85180.0,85179.0,0.00211666]
[1764614177247,2.40024619,85180.0,85179.0,0.00011666]
[1764614177426,2.40024619,85180.0,85179.0,0.00411666]
[1764614177641,2.40024619,85180.0,85179.0,0.00011666]
[1764614178072,2.40024619,85180.0,85179.0,0.00111666]
[1764614178073,2.5577969,85180.0,85179.0,0.00111666]
[1764614178273,2.67302286,85180.0,85179.0,0.00111666]
[1764614179033,0.03137745,85180.0,85179.0,0.00111666]
[1764614179231,1.01580863,85190.0,85179.0,0.00111666]
[1764614179469,2.0,85187.0,85179.0,0.00212501]
[1764614179684,2.0,85186.0,85179.0,0.00111666]
[1764614179905,0.323,85185.0,85179.0,0.00111666]
[1764614180083,0.323,85181.0,85179.0,0.00111666]
[1764614180481,0.001,85180.0,85179.0,0.00111666]
[1764614180689,0.001,85180.0,85179.0,0.00011666]
[1764614180882,0.11740741,85194.0,85185.0,0.01173915]
[1764614181100,2.06174074,85193.0,85179.0,0.00011666]
[1764614181256,0.323,85191.0,85182.0,0.01073956]
[1764614181458,0.38474074,85193.0,85182.0,0.01073956]
[1764614181696,0.38474074,85193.0,85179.0,0.01385664]
[1764614181697,0.323,85191.0,85179.0,0.00011666]
[1764614181896,0.323,85189.0,85179.0,0.01185664]
[1764614182127,0.38666868,85189.0,85181.0,0.0117397]
[1764614182496,0.38666868,85189.0,85182.0,0.01173956]
[1764614182875,0.323,85191.0,85181.0,0.0117397]
[1764614183108,0.323,85189.0,85179.0,0.00011666]
[1764614183499,0.23477917,85187.0,85179.0,0.00011666]
[1764614183655,0.323,85180.0,85179.0,0.00011666]
[1764614184259,0.323,85180.0,85179.0,0.00211666]
[1764614184461,0.39286708,85180.0,85179.0,0.00011666]
[1764614184667,0.62766398,85180.0,85179.0,0.00011666]
[1764614184947,0.39286708,85180.0,85179.0,0.00311666]
[1764614185168,0.323,85180.0,85179.0,0.00311666]
[1764614185345,0.323,85180.0,85179.0,0.00412501]
[1764614185665,2.33473846,85190.0,85179.0,0.00412501]
[1764614185957,0.323,85179.0,85172.0,0.23481783]
[1764614186167,0.323,85179.0,85172.0,0.01185768]
[1764614186373,0.323,85179.0,85173.0,0.0117408]
[1764614186593,0.323,85179.0,85172.0,0.24667531]
[1764614186733,0.323,85179.0,85174.0,0.23481208]
[1764614187073,1.01580863,85190.0,85180.0,0.01173984]
[1764614187074,0.323,85189.0,85180.0,0.01173984]
[1764614187228,0.0251261,85188.0,85180.0,0.24653588]
[1764614187419,0.0251261,85188.0,85183.0,0.01173943]
[1764614187621,0.0251261,85188.0,85185.0,0.01173915]
[1764614187839,0.323,85193.0,85185.0,0.01173915]
[1764614188051,0.323,85189.0,85185.0,0.01173915]
[1764614188257,0.11740741,85194.0,85180.0,0.01173984]
[1764614188258,2.0,85199.0,85189.0,0.0117386]
[1764614188433,2.0,85197.0,85189.0,0.0117386]
[1764614188660,0.34814022,85196.0,85184.0,0.23478371]
[1764614188865,0.02514022,85195.0,85186.0,0.01173901]
[1764614189046,0.02514022,85195.0,85187.0,0.01173888]
[1764614189246,0.02514022,85195.0,85186.0,0.01173901]
[1764614189648,0.02514022,85195.0,85187.0,0.01173888]
[1764614189845,0.02514022,85195.0,85188.0,0.23477456]
[1764614190049,0.02514022,85195.0,85185.0,0.01173915]
[1764614190314,0.02828085,85195.0,85185.0,0.24652198]
[1764614190466,0.02514022,85196.0,85186.0,0.002]
[1764614190644,0.02514022,85196.0,85184.0,0.01173929]
[1764614190847,0.02514022,85196.0,85186.0,0.01173901]
[1764614191070,0.02514022,85196.0,85188.0,0.002]
[1764614191290,0.323,85194.0,85184.0,0.01173929]
[1764614191596,0.323,85194.0,85171.0,0.2348215]
[1764614191597,0.01173998,85179.0,85158.0,0.01174287]
[1764614191890,0.01173998,85179.0,85156.0,0.2348623]
[1764614191891,0.323,85173.0,85156.0,0.2348623]
[1764614192193,0.34814022,85173.0,85154.0,0.23486774]
[1764614192349,0.61788856,85173.0,85151.0,0.01174384]
[1764614192566,0.61788856,85173.0,85154.0,0.01174342]
[1764614192567,0.58295641,85173.0,85154.0,0.01174342]
[1764614192782,0.58295641,85173.0,85155.0,0.01174329]
[1764614193182,0.58295641,85173.0,85157.0,0.01174301]
[1764614193401,0.58295641,85173.0,85157.0,0.24660326]
[1764614193807,0.58295641,85173.0,85172.0,0.00111674]
[1764614194770,0.59481571,85173.0,85172.0,0.00111674]
[1764614195108,0.62619316,85173.0,85172.0,0.00111674]
[1764614195307,0.59481571,85173.0,85172.0,0.00111674]
[1764614196734,0.64829882,85173.0,85172.0,0.00111674]
[1764614196936,0.63674371,85173.0,85172.0,0.00111674]
[1764614197135,2.59481571,85173.0,85172.0,0.00111674]
[1764614197992,0.55783274,85167.0,85166.0,25.66958447]
[1764614198193,0.70038037,85167.0,85166.0,25.6696803]
[1764614199009,2.70038037,85167.0,85166.0,25.6696803]
[1764614199182,2.81560633,85167.0,85166.0,25.6696803]
[1764614199879,2.70038037,85167.0,85166.0,25.6696803]
[1764614200295,2.70238037,85167.0,85166.0,25.6696803]
[1764614200497,2.70138037,85167.0,85166.0,25.6696803]
[1764614200901,2.70238037,85167.0,85166.0,25.6696803]
[1764614201717,2.70138037,85167.0,85166.0,25.6696803]
[1764614201883,2.7839432,85167.0,85166.0,25.6696803]
[1764614202084,2.71980306,85167.0,85166.0,25.6696803]
[1764614202602,2.72080306,85167.0,85166.0,25.6696803]
[1764614202819,2.71880306,85167.0,85166.0,25.6696803]
[1764614203134,2.71980306,85167.0,85166.0,25.6696803]
[1764614203337,2.73822598,85167.0,85166.0,25.6696803]
[1764614203534,2.85345194,85167.0,85166.0,25.6696803]
[1764614203900,2.73822598,85167.0,85166.0,25.6696803]
[1764614204936,2.73822598,85167.0,85166.0,25.6686803]
[1764614205241,2.18039324,85167.0,85166.0,25.6686803]
[1764614205587,2.16197055,85167.0,85166.0,25.6686803]
[1764614205787,2.16197055,85167.0,85166.0,25.6386803]
[1764614206009,2.14354763,85167.0,85166.0,25.6386803]
[1764614207343,2.46654763,85167.0,85166.0,25.6386803]
[1764614207962,2.70138037,85167.0,85166.0,25.6386803]
[1764614208973,2.75789489,85167.0,85166.0,25.6386803]
[1764614209872,2.70038037,85167.0,85166.0,25.6386803]
[1764614210025,2.70038037,85167.0,85166.0,25.6396803]
[1764614210621,2.46554763,85167.0,85166.0,25.6396803]
[1764614211282,2.49711464,85167.0,85166.0,25.6386803]
[1764614211512,2.46554763,85167.0,85166.0,25.6386803]
[1764614211699,2.49711464,85167.0,85166.0,25.6396803]
[1764614211901,2.46554763,85167.0,85166.0,25.6396803]
[1764614212536,2.27811727,85167.0,85166.0,25.6396803]
[1764614212714,0.323,85167.0,85166.0,25.6396803]
[1764614212924,0.323,85167.0,85166.0,25.5536803]
[1764614213335,0.11740741,85170.0,85166.0,25.5536803]
[1764614213501,0.323,85169.0,85166.0,25.5536803]
[1764614214495,0.001,85170.0,85166.0,25.5526803]
[1764614214723,0.001,85170.0,85166.0,25.5536803]
[1764614214923,0.323,85175.0,85166.0,25.5536803]